Cogmind - Beta 15 @@@ ROGUE MODE // 2025.10.19 @ 11:16:55 Player: TapeIsSticky Result: Escaped! Performance ------------- Evolutions (9) 4500 Regions Visited (24) 4800 Robots Destroyed (294) 1470 Value Destroyed (12621) 12621 Prototype IDs (26) 520 Alien Tech Used (1) 200 Bonus (15579) 15579 TOTAL SCORE: 39690 Bonus ------- Triggered High Security 500 High Alert Combat Kills 3447 Follower Combat Kills 3362 Network Hubs Disabled 200 Registered with UFD 300 Met Imprinter 300 Met Warlord at Base 500 MAIN.C Attacked Warlord 500 Built Enhanced Grunts 300 A7 Reached Mainframe 300 Met R17 at Cetus 500 Met R17 at Research 2000 Scanned by Researcher 500 Win 3000 Friendly Fire -130 Cogmind --------- Core Integrity 1576/1600 Matter 117/300 Energy 169/170 System Corruption 0% Temperature Cool (2) Movement Flying (37) Location To Epsilon Eridani Parts ------- > --- POWER (2) -------- Light Antimatter Reactor > --- PROPULSION (6) --- Impulse Thruster Field Propulsion Array > --- UTILITY (11) ----- Advanced Weight Redist. System Advanced Sensor Array Advanced Signal Interpreter Seismic Detector Transport Network Coupler Reaction Control System Graphene Brace System Shield > --- WEAPON (6) ------- Heavy Mace > --- INVENTORY (5) ---- Improved Gyrokinetic Inverter Cooled Antigrav System IFF Parser Peak State ------------ > --- POWER ------------ Micro Antimatter Reactor Light Quantum Reactor > --- PROPULSION ------- Armored Heavy Treads Advanced Heavy Treads Biometal Leg Biometal Leg > --- UTILITY ---------- Scrap Suit Advanced Cryofiber Web Advanced Heat Sink Experimental Heat Sink Huge Storage Unit Experimental Targeting Computer Heavy Regenerative Plating > --- WEAPON ----------- KE Penetrator KE Penetrator Overtuned Coil Gun Overtuned Railgun Overtuned Railgun Overtuned Railgun > --- INVENTORY -------- Light Antimatter Reactor Light Quantum Reactor Light Quantum Reactor Wheel Advanced Heat Sink Coolant Network Advanced Coolant Injector High-capacity Matter Pod IFF Parser Makeshift Salvage Targeting Computer Precision Matter Filter Advanced Transmission Jammer Graphene Brace Advanced Force Field Long-range Tractor Beam Mini Drone Bay Hacking Drone Bay Neutron Cannon KE Penetrator KE Penetrator KE Penetrator Railgun Railgun Heavy Proton Missile Launcher [Rating: 173] Favorites ----------- Power Quantum Reactor Engine Angular Momentum Engine Power Core Light Fission Core Reactor Quantum Reactor Propulsion Light Treads Treads Light Treads Leg Biometal Leg Wheel Overtuned Huge Scrapsphere Hover Unit Improved Gyrokinetic Inverter Flight Unit Impulse Thruster Utility Huge Storage Unit Device IFF Parser Storage Huge Storage Unit Processor Advanced Signal Interpreter Hackware Makeshift Hacking Suite Protection Medium Armor Plating Weapon Enhanced Autogun Energy Gun Heavy Gatling Laser Energy Cannon Compact Ion Cannon Ballistic Gun Enhanced Autogun Ballistic Cannon Heavy Flak Cannon Launcher Grenade Launcher Special Weapon CPS Tube Impact Weapon Heavy Mace Build | -11 -10 -10 -8 -8 -6 -6 -6 -6 -5 -5 -5 -5 -5 -5 -4 -4 -4 -4 -3 -3 -3 -2 -2 -1 ------- Run | Yrd Mat Sub Rec Scr Fac Low Low Zio Pro Fac Ext Cet Arc Hub Fac Upp Upp War Pro Res Tes Res Qua Acc Slots Evolved 18 | . . . . . 8 . . . . 2 . . . . 2 . . . . 2 . 2 . 2 Power 1 | . . . . . 1 . . . . . . . . . . . . . . . . . . . Propulsion 4 | . . . . . 2 . . . . . . . . . 1 . . . . . . 1 . . Utility 9 | . . . . . 4 . . . . 2 . . . . 1 . . . . . . . . 2 Weapon 4 | . . . . . 1 . . . . . . . . . . . . . . 2 . 1 . . Parts Attached 196 | 7 4 9 3 10 23 2 2 1 1 11 7 11 4 8 12 1 4 8 2 12 8 29 10 7 Power 24 | 1 . 1 1 1 5 . . 1 . 2 . 2 1 1 . . . . 1 . . 5 1 1 Engine 9 | 1 . 1 1 1 2 . . 1 . . . 1 . . . . . . . . . . 1 . Core 5 | . . . . . 3 . . . . 2 . . . . . . . . . . . . . . Reactor 10 | . . . . . . . . . . . . 1 1 1 . . . . 1 . . 5 . 1 Propulsion 36 | 2 . 1 . . 7 . . . 1 2 1 2 . 2 1 . . 1 1 1 . 7 5 2 Treads 26 | 2 . 1 . . 7 . . . 1 1 1 2 . 2 1 . . . 1 1 . 4 2 . Leg 2 | . . . . . . . . . . . . . . . . . . . . . . 2 . . Wheel 3 | . . . . . . . . . . 1 . . . . . . . 1 . . . 1 . . Hover 2 | . . . . . . . . . . . . . . . . . . . . . . . 2 . Flight 3 | . . . . . . . . . . . . . . . . . . . . . . . 1 2 Utility 73 | 2 2 4 1 3 6 2 2 . . 5 4 4 . 3 7 1 1 4 . 5 5 4 4 4 Device 44 | 1 . 2 . 3 4 2 1 . . 3 . 2 . 3 6 . 1 1 . 4 3 3 3 2 Storage 4 | 1 2 . . . . . . . . . . . . . 1 . . . . . . . . . Processor 10 | . . 1 . . 1 . . . . . . . . . . 1 . 2 . 1 2 . 1 1 Hackware 3 | . . . . . . . . . . . 1 . . . . . . 1 . . . . . 1 Protection 12 | . . 1 1 . 1 . 1 . . 2 3 2 . . . . . . . . . 1 . . Artifact . | . . . . . . . . . . . . . . . . . . . . . . . . . Weapon 63 | 2 2 3 1 6 5 . . . . 2 2 3 3 2 4 . 3 3 . 6 3 13 . . Energy Gun 18 | . . 2 1 1 1 . . . . . . 2 3 2 2 . 3 1 . . . . . . Energy Cannon 9 | . . 1 . . 1 . . . . 1 1 1 . . 1 . . 2 . . 1 . . . Ballistic Gun 24 | 2 1 . . . 2 . . . . . 1 . . . 1 . . . . 4 1 12 . . Ballistic Cannon 2 | . . . . 1 1 . . . . . . . . . . . . . . . . . . . Launcher 3 | . 1 . . . . . . . . 1 . . . . . . . . . 1 . . . . Special Weapon 6 | . . . . 4 . . . . . . . . . . . . . . . 1 1 . . . Impact Weapon 1 | . . . . . . . . . . . . . . . . . . . . . . 1 . . Slashing Weapon . | . . . . . . . . . . . . . . . . . . . . . . . . . Piercing Weapon . | . . . . . . . . . . . . . . . . . . . . . . . . . Special Melee Weapon . | . . . . . . . . . . . . . . . . . . . . . . . . . Unidentified Prototypes 25 | . . . . . 2 . . . . 1 1 4 . 3 . . . 6 1 2 3 1 . 1 Corrupted Parts 3 | . . . . . . . . . . . . . . 1 . . . . . 1 1 . . . System Corruption 6 | . . . . . . . . . . . . . . 1 . . . . . 2 3 . . . Parts Lost 52 | . . . . . . . 1 . 1 . 1 2 1 8 . . . . 4 . 1 32 . 1 Power 10 | . . . . . . . 1 . . . . 1 . 1 . . . . 2 . . 5 . . Propulsion 11 | . . . . . . . . . 1 . . . . 3 . . . . 2 . . 4 . 1 Utility 13 | . . . . . . . . . . . . . . 3 . . . . . . 1 9 . . Weapon 18 | . . . . . . . . . . . 1 1 1 1 . . . . . . . 14 . . Highest Loss Streak 22 | . . . . . . . 1 . 1 . 1 2 1 8 . . . . 2 . 1 22 . 1 To Critical Strikes 2 | . . . . . . . . . . . . 1 . . . . . . . . . 1 . . Average Backups 20 | 1 16 20 20 18 20 22 22 22 22 23 24 23 22 23 21 22 22 21 20 20 19 18 4 4 Power . | . . . 1 . . . . . . 1 2 1 1 2 1 1 1 1 . . 1 2 1 . Propulsion 3 | . 3 6 6 4 4 5 5 5 4 3 3 2 2 1 . 1 1 2 1 1 1 . . 1 Utility 10 | . 7 7 7 7 12 12 13 13 13 13 14 15 14 14 11 11 11 10 11 16 13 13 1 . Weapon 5 | . 5 6 6 4 3 4 4 4 5 5 5 5 5 5 7 8 8 6 7 2 2 2 . . Tool/Special . | . . . . . . . . . . . . . . . . . . . . . . . . . Unused Backups 60 | . 9 4 . 9 5 1 . 3 . . . 6 . 1 1 2 1 3 . 5 2 5 1 2 Power 2 | . . . . . . . . . . . . 1 . . . . . . . 1 . . . . Propulsion 9 | . . 2 . 3 2 . . . . . . . . . . . . . . . . . . 2 Utility 32 | . 6 1 . 3 3 . . 3 . . . 3 . 1 . . . 2 . 3 1 5 1 . Weapon 13 | . 3 1 . 2 . . . . . . . 2 . . 1 2 1 . . 1 . . . . Tool/Special 4 | . . . . 1 . 1 . . . . . . . . . . . 1 . . 1 . . . Average Slot Usage (%) 89 | . 100 100 100 88 99 100 93 99 100 87 88 87 88 87 84 89 88 84 79 78 79 73 26 47 Engine 7 | . 14 14 14 12 6 6 6 12 13 5 5 5 3 . . . . . . . . . . 2 Reactor 2 | . . . . . . . . . . . . 4 7 11 10 10 10 10 8 4 4 5 . 1 Treads 21 | . 28 28 28 28 25 26 26 26 26 11 11 11 11 10 11 15 15 13 8 8 9 11 8 5 Device 17 | . 14 11 . 5 23 26 25 26 26 27 18 18 17 18 27 30 25 23 21 14 16 18 8 20 Storage 7 | . 14 14 14 12 6 6 6 6 6 5 5 5 5 5 5 5 5 5 5 4 4 3 . . Processor 4 | . . 2 . . 5 6 6 6 6 5 5 5 5 5 5 5 9 7 10 12 11 4 . 5 Hackware 1 | . . . . . . . . . . . 3 5 5 5 5 5 5 5 5 4 4 2 . . Protection 2 | . . . 13 5 2 . . . . . 4 4 5 3 3 . . . . . . . . . Energy Gun 7 | . . 17 14 12 8 . . . . . . 8 8 15 11 13 14 14 14 . . . . . Energy Cannon 5 | . . . 14 9 5 6 6 6 5 5 7 5 8 . 3 1 . . . 1 3 1 . . Ballistic Gun 7 | . 27 10 . . 3 13 13 13 12 10 8 1 . . . . . . . 20 19 21 . . Peak Build Rating 173 | 7 10 14 14 23 68 70 70 70 70 85 87 103 109 112 132 132 130 138 138 150 158 173 66 80 Average Rating 67 | 5 8 11 13 14 59 69 65 69 69 83 84 98 103 108 122 131 129 131 133 144 142 154 46 63 On Entrance 76 | . 7 9 13 14 23 67 70 66 70 70 84 87 101 109 94 132 130 126 138 129 146 145 24 61 Naked Turns 30 | . . . . . . . . . . . . . . . . . . . . . . 30 . . Heaviest Build 163 | 13 88 57 64 105 119 114 116 115 115 141 146 149 158 153 156 152 150 156 148 153 151 163 10 19 Greatest Support 200 | 40 40 40 40 40 82 82 82 82 84 20 45 20 20 98 168 168 168 150 98 97 27 200 37 84 Greatest Overweight (x) 7 | . 2 1 1 2 1 1 1 1 1 7 7 7 7 7 1 1 . 7 7 7 7 1 1 1 Average Overweight (x) 2 | . 1 1 1 1 . 1 1 1 1 6 6 6 7 6 . . . 1 6 6 6 . . . Largest Inventory Capacity 25 | 8 25 20 20 25 25 25 25 25 25 25 25 25 25 25 25 25 25 25 25 25 25 25 5 5 Average Capacity 23 | 7 21 20 20 22 22 25 25 25 25 25 25 25 25 25 25 25 25 25 25 25 25 23 5 5 Most Carried 25 | 3 22 20 20 25 25 25 25 25 25 25 25 25 25 25 25 25 25 25 25 25 25 25 5 5 Average Carried 21 | 1 16 19 20 19 22 24 25 24 24 23 24 24 23 24 21 24 24 24 24 23 24 21 4 4 Final Capacity 25 | 8 20 20 20 25 25 25 25 25 25 25 25 25 25 25 25 25 25 25 25 25 25 5 5 5 Final Carried 25 | 3 20 20 20 25 25 25 25 25 24 25 25 25 25 21 24 25 25 25 23 25 24 5 5 3 Class Distribution -------------------- 22% | Scavenger-Skirmisher 20% | Scavenger-Mutant 17% | Mutant 10% | Scavenger-Gunner 9% | Scavenger-Tank 8% | Scavenger-Scrapper 3% | Infiltrator-Skirmisher Dominant Class ---------------- Mutant | -10/Materials Mutant | -10/Subcaves Scavenger-Mutant | -8/Recycling Scavenger-Mutant | -8/Scraptown Scavenger-Skirmisher | -6/Factory Scavenger-Skirmisher | -6/Lower Caves Scavenger-Skirmisher | -6/Lower Caves Scavenger-Skirmisher | -6/Zion Scavenger-Skirmisher | -5/Proximity Caves Infiltrator-Skirmisher | -5/Factory Scavenger-Scrapper | -5/Extension Scavenger-Tank | -5/Cetus Scavenger-Tank | -5/Archives Scavenger-Tank | -5/Hub_04(d) Scavenger-Tank | -4/Factory Commander-Gunner | -4/Upper Caves Scavenger-Gunner | -4/Upper Caves Scavenger-Tank | -4/Warlord Scavenger-Gunner | -3/Proximity Caves Scavenger-Scrapper | -3/Research Scavenger-Scrapper | -3/Testing Scavenger-Executioner | -2/Research Scavenger-Mutant | -2/Quarantine Scout | -1/Access Resources | -11 -10 -10 -8 -8 -6 -6 -6 -6 -5 -5 -5 -5 -5 -5 -4 -4 -4 -4 -3 -3 -3 -2 -2 -1 ----------- Run | Yrd Mat Sub Rec Scr Fac Low Low Zio Pro Fac Ext Cet Arc Hub Fac Upp Upp War Pro Res Tes Res Qua Acc Matter Collected 9727 | 327 608 168 30 878 410 116 125 10 198 124 640 186 55 112 280 37 131 140 60 424 679 3790 97 102 Remotely 2528 | . . . . . . . . . . . . . . . . . . . . 160 175 2193 . . Salvage Created 15632 | 168 656 169 82 . 464 77 112 . 269 262 1034 243 119 1109 404 119 555 . 718 661 1088 7124 97 102 Parts 762 | 22 43 15 2 . 52 1 11 . 16 27 31 6 2 39 24 5 20 . 18 38 51 334 5 . Haulers Intercepted 4 | . 2 . . . . . . . . . . . . 1 . . . . . . . . 1 . Recyclers Shooed 16 | 1 5 . . . 1 . . . . 1 . . . 2 . . . . . . . 4 . 2 Parts Field Recycled 15 | . . . . 15 . . . . . . . . . . . . . . . . . . . . Retrieved Matter 584 | . . . . 584 . . . . . . . . . . . . . . . . . . . . Parts Self-Destructed 106 | . . 8 . . . 2 14 . 14 . . . . . . 33 15 . 20 . . . . . Prevented 2 | . . . . . . 1 . . . . . . . . . 1 . . . . . . . . Kills | -11 -10 -10 -8 -8 -6 -6 -6 -6 -5 -5 -5 -5 -5 -5 -4 -4 -4 -4 -3 -3 -3 -2 -2 -1 ------- Run | Yrd Mat Sub Rec Scr Fac Low Low Zio Pro Fac Ext Cet Arc Hub Fac Upp Upp War Pro Res Tes Res Qua Acc Combat Hostiles Destroyed 200 | . 9 4 . . 6 2 2 . 13 8 15 3 1 16 8 3 1 . 17 3 12 77 . . Melee 1 | . . . . . . . . . . . . . . . . . . . . . . 1 . . Guns 146 | . 9 4 . . 2 1 1 . 4 . 4 2 . 3 7 2 1 . 16 3 12 75 . . Cannons 15 | . . . . . 4 1 1 . . 2 5 1 1 . . . . . . . . . . . AOE 34 | . . . . . . . . . 9 6 5 . . 13 . . . . . . . 1 . . Classes Destroyed 24 | 2 5 2 . . 6 . . . . . 1 . . 1 1 . . . 3 . 1 2 . . Worker 15 | . 1 . . . 1 . . . . . . . . 2 . . . . . . . 11 . . Builder 18 | . . . . . 3 . . . . 2 1 . . . . . . . . 1 4 7 . . Tunneler 7 | 7 . . . . . . . . . . . . . . . . . . . . . . . . Hauler 4 | . 2 . . . . . . . . . . . . 1 . . . . . . . . 1 . Recycler 16 | 1 5 . 1 . . . . . . . 1 . . 2 . . . . . . . 5 . 1 Operator 4 | . . . . . 1 . . . . . . . 1 . . . . . . . 1 1 . . Drone 1 | . . . . . . . . . . . . . . . . . . . 1 . . . . . Watcher 12 | . 3 . . . . . . . . 1 1 . . 1 1 . . . . . 1 4 . . Swarmer 60 | . 8 . . . . 1 . . 9 5 . . . 8 4 2 1 . 5 1 2 14 . . Saboteur 3 | . . . . . . . . . . . . . . . . . . . . . . 3 . . Grunt 55 | . 1 . . . . . . . 4 . 11 . . 4 1 1 . . 8 . 6 19 . . Brawler 3 | . . . . . . . . . . . . . . . . . . . 1 . . 2 . . Duelist 1 | . . . . . . . . . . . . . . . . . . . . . . 1 . . Protector 1 | . . . . . . . . . . . . . . . . . . . 1 . . . . . Researcher 1 | . . . . . . . . . . . . . . . . . . . . . 1 . . . Sentry 25 | . . 1 . . 1 . . . . 1 3 . 1 2 . . . . 1 1 2 12 . . Demolisher 1 | . . . . . . . . . . . . . . . . . . . . . . 1 . . Specialist 5 | . . . . . . . . . . . . . . 1 . . . . . . . 4 . . Hunter 19 | . . . . . 1 1 2 . . 2 . . . 1 . . . . . 1 . 11 . . Programmer 15 | . . . . . 2 . . . . . . . . . 2 . . . . . 2 9 . . Heavy 2 | . . . . . 1 . . . . . . . . . . . . . . . . 1 . . Behemoth 1 | . . . . . . . . . . . . . . . 1 . . . . . . . . . Cetus Guard 3 | . . . . . . . . . . . . 3 . . . . . . . . . . . . Enhanced Grunt 1 | . . . . . . . . . . . . . . 1 . . . . . . . . . . Subdweller 3 | . . 3 . . . . . . . . . . . . . . . . . . . . . . Scrapoid 16 | . . . . . 1 . . . . . . . . . . . 6 . . 6 . 3 . . Packrat 1 | . . . . . . . . . . . . . . . . . 1 . . . . . . . Butcher 2 | . . . . . . . . . . . 1 1 . . . . . . . . . . . . Best Kill Streak 21 | 3 3 2 1 . 2 1 2 . 5 9 5 2 1 18 5 2 1 . 9 2 7 21 1 1 Combat Bots Only 21 | . 3 2 . . 1 1 2 . 5 6 5 2 1 13 4 2 1 . 9 1 4 21 . . Max Kills in Single Turn 14 | 1 2 1 1 . 1 1 1 . 2 4 2 1 1 14 2 2 1 . 2 1 2 4 1 1 Gunslinging 1 | . 1 . . . . . . . . . . . . . 1 1 . . 1 . 1 1 . . Exploded 11 | . . . . . . . . . 2 4 2 . . 11 . . . . . . . 1 . . Melee 1 | . . . . . . . . . . . . . . . . . . . . . . 1 . . Uniques/NPCs Destroyed . | . . . . . . . . . . . . . . . . . . . . . . . . . Combat | -11 -10 -10 -8 -8 -6 -6 -6 -6 -5 -5 -5 -5 -5 -5 -4 -4 -4 -4 -3 -3 -3 -2 -2 -1 -------- Run | Yrd Mat Sub Rec Scr Fac Low Low Zio Pro Fac Ext Cet Arc Hub Fac Upp Upp War Pro Res Tes Res Qua Acc Hostile Shots Fired 1070 | . 16 30 . . 50 21 27 . 56 22 56 26 10 86 15 4 5 3 105 18 33 473 . 14 Missed 298 | . 6 9 . . 16 5 5 . 17 7 10 12 4 19 4 1 2 1 18 3 11 142 . 6 Hits 772 | . 10 21 . . 34 16 22 . 39 15 46 14 6 67 11 3 3 2 87 15 22 331 . 8 Melee 5 | . . . . . . . . . . . . . . . . . . . . . . 5 . . Projectile 767 | . 10 21 . . 34 16 22 . 39 15 46 14 6 67 11 3 3 2 87 15 22 326 . 8 AOE 1 | . . . . . . . . . . . . . . . . . . 1 . . . . . . Critical Strikes 35 | . . 2 . . . . 1 . . . 3 2 . 6 . . . . 5 . 2 14 . . Actively Blocked 7 | . . . . . . . . . . . . . . 6 . . . . . . . 1 . . Damage Taken 17702 | . 91 418 . . 435 276 308 . 667 253 796 343 177 2001 166 208 44 104 1869 586 494 8266 . 200 Core 1947 | . 25 168 . . 33 20 18 . 38 . . 85 . 177 13 . 28 . 146 40 . 1132 . 24 Absorbed by Shields 471 | . . . . . 70 . 88 . . . 250 63 . . . . . . . . . . . . Reduced by Siege Mode 235 | . . . . . . . . . . . . . . . . . . . 160 . . 75 . . Regen/Repaired (Parts) 742 | . . . . . . . . . . 20 . . . . . . . 39 10 10 286 377 . . Core Remaining (%) 72 | 100 . . . 22 . . . . 87 . . . . 73 . . . . 83 . 96 . 21 98 Volleys Fired 823 | 12 55 21 1 7 83 23 21 . 64 47 56 21 16 17 32 13 33 15 36 47 55 148 . . Largest 6 | 2 2 2 2 1 3 3 3 . 2 3 3 3 3 3 3 3 3 1 3 5 5 6 . . Hottest 300 | 40 40 85 140 . 210 140 140 . 90 135 152 245 282 282 300 300 300 100 300 160 168 221 . . Shots Fired 1928 | 24 105 36 2 7 116 47 36 . 76 61 128 35 26 37 54 23 42 15 88 75 147 748 . . Gun 1439 | 24 100 30 1 . 36 24 20 . 24 14 63 9 8 30 30 13 37 . 78 37 118 743 . . Cannon 451 | . . 6 1 . 80 23 16 . 40 44 59 26 18 5 24 10 5 15 10 36 28 5 . . Launcher 28 | . 5 . . . . . . . 12 3 6 . . 2 . . . . . . . . . . Special 10 | . . . . 7 . . . . . . . . . . . . . . . 2 1 . . . Kinetic 1205 | 24 100 26 . . 10 24 20 . 24 14 63 . . . 2 . . . . 37 118 743 . . Thermal 684 | . . 10 2 . 106 23 16 . 40 44 59 35 26 35 52 23 42 14 88 36 28 5 . . Explosive 28 | . 5 . . . . . . . 12 3 6 . . 2 . . . . . . . . . . Electromagnetic . | . . . . . . . . . . . . . . . . . . . . . . . . . Entropic 1 | . . . . . . . . . . . . . . . . . . 1 . . . . . . Robot Hit Streak 46 | 3 5 26 3 4 12 5 6 . 5 7 16 12 12 8 7 18 4 . 46 11 10 35 . . Robot Miss Streak 13 | 2 3 3 . 1 3 3 2 . 5 2 3 3 2 2 10 5 4 . 3 5 5 13 . . Penetration Max 2 | . . . . . . . . . . . . . . . . . . . . 1 1 2 . . Secondary Targets 45 | . 1 . . . . . . . . . . . . . 2 1 . . 5 . 2 34 . . Max Gunslinging Chain 2 | . 1 . . . . . . . . . . . . . 1 1 . . 1 . 1 2 . . Shots Hit Robots 1054 | 11 53 25 1 5 35 19 15 . 16 16 77 22 10 22 22 14 21 . 70 32 70 491 2 5 Core Hits 633 | 9 30 11 2 . 16 4 6 . 29 21 49 9 4 37 14 6 9 . 70 16 36 253 1 1 Critical Kills 27 | . . . . . . . . . . . 1 . . . . . . . . 1 3 22 . . Critical Parts Destroyed 36 | . 1 . . . . . . . . . . . . . . . . . . 2 3 30 . . Critical Strikes 73 | . 1 . . . . . . . . . 1 . . . . . 7 . . 3 6 55 . . Burn 7 | . . . . . . . . . . . . . . . . . 7 . . . . . . . Meltdown 1 | . . . . . . . . . . . 1 . . . . . . . . . . . . . Destroy 65 | . 1 . . . . . . . . . . . . . . . . . . 3 6 55 . . Melee Attacks 22 | . . . . . . . . . . . . . . . . . . . . . . 2 5 15 Impact 22 | . . . . . . . . . . . . . . . . . . . . . . 2 5 15 Slashing . | . . . . . . . . . . . . . . . . . . . . . . . . . Piercing . | . . . . . . . . . . . . . . . . . . . . . . . . . Sneak Attacks 3 | . . . . . . . . . . . . . . . . . . . . . . . 1 2 Combat Hostiles . | . . . . . . . . . . . . . . . . . . . . . . . . . Follow-up Attacks . | . . . . . . . . . . . . . . . . . . . . . . . . . Damage Inflicted 38709 | 127 715 307 26 . 922 361 221 . 1098 994 3020 746 321 3471 850 574 765 . 2506 1295 2446 17543 126 275 Guns 28709 | 126 659 301 23 . 426 139 168 . 170 102 814 155 106 690 850 478 765 . 2506 422 2446 17363 . . Cannons 3726 | . . . . . 418 222 53 . . 281 1111 591 202 . . 96 . . . 752 . . . . Explosions 5722 | . 9 . . . . . . . 928 611 1095 . . 2779 . . . . . 121 . 179 . . Melee 401 | . . . . . . . . . . . . . . . . . . . . . . . 126 275 Ramming 151 | 1 47 6 3 . 78 . . . . . . . 13 2 . . . . . . . 1 . . Kinetic 22778 | 126 659 225 . . 115 139 168 . 170 102 814 . . . 29 . . . . 422 2446 17363 . . Thermal 9778 | . . 76 23 . 729 222 53 . . 281 1111 746 308 690 821 574 765 . 2506 873 . . . . Explosive 3701 | . 9 . . . . . . . 928 611 1095 . . 879 . . . . . . . 179 . . Electromagnetic 1900 | . . . . . . . . . . . . . . 1900 . . . . . . . . . . Impact 401 | . . . . . . . . . . . . . . . . . . . . . . . 126 275 Slashing . | . . . . . . . . . . . . . . . . . . . . . . . . . Piercing . | . . . . . . . . . . . . . . . . . . . . . . . . . Highest Corruption 11 | . . . . . . . . . . . . . . 11 2 2 2 2 . 2 5 9 9 . Average Corruption 2 | . . . . . . . . . . . . . . 4 1 2 2 2 . 2 2 6 9 . Corruption Purged . | . . . . . . . . . . . . . . . . . . . . . . . . . Corruption Blocked . | . . . . . . . . . . . . . . . . . . . . . . . . . Effects 81 | . . . . . . . . . . . . . . 1 11 8 9 . . 12 12 25 3 . Message Errors 15 | . . . . . . . . . . . . . . . . 2 . . . 5 4 4 . . Matter Fused 26 | . . . . . . . . . . . . . . 1 7 1 3 . . 3 3 7 1 . Heat Flow Errors 11 | . . . . . . . . . . . . . . . 2 1 2 . . 2 . 2 2 . Energy Discharges 6 | . . . . . . . . . . . . . . . 1 1 . . . 1 2 1 . . Parts Fused 1 | . . . . . . . . . . . . . . . . . 1 . . . . . . . Data Loss (minor) 10 | . . . . . . . . . . . . . . . 1 1 2 . . 1 1 4 . . Data Loss (major) 2 | . . . . . . . . . . . . . . . . 2 . . . . . . . . Misfires 2 | . . . . . . . . . . . . . . . . . 1 . . . . 1 . . Alerts 1 | . . . . . . . . . . . . . . . . . . . . . 1 . . . Weapon Failures 7 | . . . . . . . . . . . . . . . . . . . . . 1 6 . . Overload Shots 1 | . . . . . . . . . . . . 1 . . . . . . . . . . . . Overflow Damage 189 | . . . . . 6 . . . . 47 3 . 3 54 . . . . . . . . . 76 Projectiles 40 | . . . . . 6 . . . . 31 3 . . . . . . . . . . . . . Explosions 70 | . . . . . . . . . . 16 . . . 54 . . . . . . . . . . Melee 79 | . . . . . . . . . . . . . 3 . . . . . . . . . . 76 Knockbacks 5 | . . . . . 1 . . . . . . . . 1 . . . . . . . . . 3 Impact 5 | . . . . . 1 . . . . . . . . 1 . . . . . . . . . 3 Kinetic . | . . . . . . . . . . . . . . . . . . . . . . . . . Secondary . | . . . . . . . . . . . . . . . . . . . . . . . . . Self-Inflicted Damage 270 | . 11 . . . . . . . 11 . . . 6 170 . . . . . 72 . . . . Shots 5 | . 1 . . . . . . . 1 . . . . 2 . . . . . 1 . . . . Rammed 19 | 1 7 3 1 . 4 . . . . . . . 1 1 . . . . . . . 1 . . Targets Rammed 22 | 1 9 3 1 . 5 . . . . . . . 1 1 . . . . . . . 1 . . Kicked . | . . . . . . . . . . . . . . . . . . . . . . . . . Crushed 3 | . 2 . . . 1 . . . . . . . . . . . . . . . . . . . Highest Temperature 845 | . . 3 87 . 214 220 180 . 168 96 280 313 222 234 198 111 230 15 141 294 342 845 203 . Average Temperature 92 | . . 3 46 . 85 90 85 . 53 22 79 129 85 101 91 47 46 15 30 104 98 350 112 . Received Heat Transfer 2631 | . 12 117 . . 70 . . . 105 9 288 9 9 285 . 21 . . 515 81 75 1035 . . Effects 17 | . . . . . . . . . . . 4 1 . . . . . . . 1 . 11 . . Shutdowns 3 | . . . . . . . . . . . . . . . . . . . . . . 3 . . Energy Bleed 2 | . . . . . . . . . . . 1 . . . . . . . . 1 . . . . Interference 4 | . . . . . . . . . . . 3 . . . . . . . . . . 1 . . Matter Decay 3 | . . . . . . . . . . . . 1 . . . . . . . . . 2 . . Damage (minor) 1 | . . . . . . . . . . . . . . . . . . . . . . 1 . . Damage (major) 2 | . . . . . . . . . . . . . . . . . . . . . . 2 . . Damage (core) 2 | . . . . . . . . . . . . . . . . . . . . . . 2 . . Siege Activations 8 | . . . . . . . . . . . . . . . . . . . 3 . . 5 . . Total Turns 87 | . . . . . . . . . . . . . . . . . . . 58 . . 29 . . Longest Duration 36 | . . . . . . . . . . . . . . . . . . . 36 . . 12 . . Martial Activations . | . . . . . . . . . . . . . . . . . . . . . . . . . Shielding Activations . | . . . . . . . . . . . . . . . . . . . . . . . . . Robots Disrupted . | . . . . . . . . . . . . . . . . . . . . . . . . . Combat Hostiles . | . . . . . . . . . . . . . . . . . . . . . . . . . Robots Corrupted 4 | . . . . . . . . . . . . . 1 2 . . . . . . . . . 1 Combat Hostiles . | . . . . . . . . . . . . . . . . . . . . . . . . . Parts Fried 15 | . . . . . . . . . . . . . 3 10 . . . . . . . . . 2 Impact Corruptions 3 | . . . . . . . . . . . . . 1 . . . . . . . . . . 2 Robots Melted 5 | . . . . . . . . . . . 1 . . . 1 1 1 . 1 . . . . . Combat Hostiles 4 | . . . . . . . . . . . 1 . . . 1 1 . . 1 . . . . . Parts Melted 38 | . . . . . 8 . . . . 2 3 1 . 1 5 3 7 . 6 . . 2 . . Heat Transferred 12267 | . . 95 25 . 894 296 74 . . 333 1436 966 259 888 999 650 1359 . 3893 100 . . . . Parts Sabotaged 1 | . . . . . . . . . . . . . . . . . . . . . . 1 . . Parts Stolen . | . . . . . . . . . . . . . . . . . . . . . . . . . Parts Stripped . | . . . . . . . . . . . . . . . . . . . . . . . . . Power Chain Reactions 1 | . . . . . . . . . . . . . . . . . . . . 1 . . . . Alert | -11 -10 -10 -8 -8 -6 -6 -6 -6 -5 -5 -5 -5 -5 -5 -4 -4 -4 -4 -3 -3 -3 -2 -2 -1 ------- Run | Yrd Mat Sub Rec Scr Fac Low Low Zio Pro Fac Ext Cet Arc Hub Fac Upp Upp War Pro Res Tes Res Qua Acc Maximum Alert Level 5 | . . . . . 1 . . . . 1 1 1 . 3 3 . . . . 1 1 5 5 3 Low Security (%) 65 | 100 100 . 100 . 68 . . . . 86 66 93 100 87 . . . . . 20 86 26 . . Level 1 21 | . . . . . 31 . . . . 13 33 6 . . 69 . . . . 79 13 14 . . Level 2 2 | . . . . . . . . . . . . . . . 29 . . . . . . 5 . . Level 3 4 | . . . . . . . . . . . . . . 12 . . . . . . . 12 . 100 Level 4 1 | . . . . . . . . . . . . . . . . . . . . . . 11 . . Level 5 1 | . . . . . . . . . . . . . . . . . . . . . . . 100 . High Security 3 | . . . . . . . . . . . . . . . . . . . . . . 27 . . Max Security . | . . . . . . . . . . . . . . . . . . . . . . . . . Peak Influence 2965 | 15 104 . 34 . 296 . . . . 225 370 214 64 979 704 . . . . 385 335 2965 1684 981 Initial 1667 | . 3 . . . . . . . . 38 102 179 21 4 437 . . . . 50 173 184 1667 981 Average 273 | 1 30 . 3 . 162 . . . . 46 131 136 26 147 421 . . . . 260 164 1036 1662 933 Influence Increases 11396 | 40 339 20 53 . 821 52 50 . 305 351 737 368 193 1132 749 433 288 . 320 664 564 3812 49 56 Destroy 0b10 Robot/C 5360 | . 180 20 . . 300 40 40 . 260 160 400 160 80 380 340 200 160 . 300 260 260 1820 . . Destroy 0b10 Robot/NC 460 | 40 55 . 5 . 30 . . . . 15 25 10 5 30 15 . . . 10 5 30 175 5 5 Destroy Leader 880 | . 40 . . . 110 10 10 . 30 42 46 . . 74 64 30 20 . 10 50 32 310 2 . Allied During Kill 1984 | . . . . . 182 2 . . . . 147 153 85 364 117 203 108 . . 231 . 392 . . Successful Hack 183 | . . . 17 . 32 . . . . 31 24 . . . . . . . . 18 26 8 27 . Select Force Hacks 30 | . . . 30 . . . . . . . . . . . . . . . . . . . . . Disable Machine 585 | . 15 . . . 75 . . . . 15 15 15 15 45 135 . . . . . 90 120 15 30 Destroy Structure 1584 | . 34 . 1 . 77 . . . . 88 80 30 8 224 78 . . . . 100 96 762 . 6 Lose Combat Pursuer 330 | . 15 . . . 15 . . . 15 . . . . 15 . . . . . . 30 225 . 15 Influence Decreases 10519 | 35 322 42 53 . 549 324 50 . 243 204 626 635 232 252 957 720 456 231 245 431 543 1176 1378 815 Entered New Map 3704 | . 2 11 . . . 101 . . . 24 107 141 32 10 457 254 76 231 . 25 135 145 1298 655 Time Decay 5318 | 35 320 31 53 . 489 143 40 . 233 180 461 334 177 122 380 386 380 . 205 386 398 335 80 150 Lost Part 520 | . . . . . . . 10 . 10 . 10 20 10 80 . . . . 40 . 10 320 . 10 Lost Ally 741 | . . . . . 60 80 . . . . 48 140 13 40 120 80 . . . 20 . 140 . . Purge Threat 236 | . . . . . . . . . . . . . . . . . . . . . . 236 . . Squads Dispatched 65 | . 1 . . . 6 . . . . 2 . . . 4 6 . . . 1 8 5 29 . 3 Investigation 13 | . . . . . 2 . . . . 1 . . . . 3 . . . . 4 . 2 . 1 Extermination 8 | . . . . . 2 . . . . . . . . . 2 . . . . . 1 2 . 1 Reinforcement 17 | . 1 . . . 2 . . . . 1 . . . 4 . . . . . 3 1 4 . 1 Assault 18 | . . . . . . . . . . . . . . . 1 . . . 1 . . 16 . . Garrison 9 | . . . . . . . . . . . . . . . . . . . . 1 3 5 . . Intercept . | . . . . . . . . . . . . . . . . . . . . . . . . . Searches Triggered . | . . . . . . . . . . . . . . . . . . . . . . . . . Construction Impeded 2 | . . . . . . . . . . 1 . . . . . . . . . . 1 . . . Haulers Reinforced 2 | . . . . . . . . . . . . . . 1 . . . . . 1 . . . . Active Scanning Responses . | . . . . . . . . . . . . . . . . . . . . . . . . . Cargo Convoy Interrupts . | . . . . . . . . . . . . . . . . . . . . . . . . . Stealth | -11 -10 -10 -8 -8 -6 -6 -6 -6 -5 -5 -5 -5 -5 -5 -4 -4 -4 -4 -3 -3 -3 -2 -2 -1 --------- Run | Yrd Mat Sub Rec Scr Fac Low Low Zio Pro Fac Ext Cet Arc Hub Fac Upp Upp War Pro Res Tes Res Qua Acc Distress Signals 27 | . 3 . . . . . . . . 1 1 2 . 1 2 . . 1 . 9 1 4 . 2 Communications Jammed 59 | . . . . . 2 . . . . 3 1 . . 8 . . . . . . . 45 . . Distress Signals 52 | . . . . . 1 . . . . 1 1 . . 8 . . . . . . . 41 . . Times Spotted 395 | . 24 10 . . 19 2 2 . 13 13 20 10 4 27 15 8 6 25 18 14 19 137 1 8 Peak Tracking Total 23 | . 4 6 . . 3 1 2 . 5 7 7 5 1 10 5 4 4 14 9 4 5 23 1 6 Tactical Retreats 11 | . 1 . . . 1 . . . 1 . . . . 1 . . . . . . 2 4 . 1 Traps | -11 -10 -10 -8 -8 -6 -6 -6 -6 -5 -5 -5 -5 -5 -5 -4 -4 -4 -4 -3 -3 -3 -2 -2 -1 ------- Run | Yrd Mat Sub Rec Scr Fac Low Low Zio Pro Fac Ext Cet Arc Hub Fac Upp Upp War Pro Res Tes Res Qua Acc Traps Triggered 19 | . . 1 . . 2 . . . . . 5 . . . 2 . . . . . 3 5 . 1 Indirectly . | . . . . . . . . . . . . . . . . . . . . . . . . . Trap Hack Attempts . | . . . . . . . . . . . . . . . . . . . . . . . . . Triggered . | . . . . . . . . . . . . . . . . . . . . . . . . . Disarmed 4 | . . . . . . . . . . . 4 . . . . . . . . . . . . . Reprogrammed . | . . . . . . . . . . . . . . . . . . . . . . . . . Reused . | . . . . . . . . . . . . . . . . . . . . . . . . . Traps Extracted . | . . . . . . . . . . . . . . . . . . . . . . . . . Installed . | . . . . . . . . . . . . . . . . . . . . . . . . . Triggered . | . . . . . . . . . . . . . . . . . . . . . . . . . Machines | -11 -10 -10 -8 -8 -6 -6 -6 -6 -5 -5 -5 -5 -5 -5 -4 -4 -4 -4 -3 -3 -3 -2 -2 -1 ---------- Run | Yrd Mat Sub Rec Scr Fac Low Low Zio Pro Fac Ext Cet Arc Hub Fac Upp Upp War Pro Res Tes Res Qua Acc Machines Disabled 40 | . 1 . . . 5 . . . . 1 1 1 1 3 9 . . 1 . . 6 8 1 2 Max in Single Turn 3 | . 1 . . . 1 . . . . 1 1 1 1 3 . . . 1 . . 1 2 1 1 Garrison Access 1 | . . . . . . . . . . . . . . . . . . . . 1 . . . . Network Hub 1 | . . . . . . . . . . . . . . 1 . . . . . . . . . . Machines Repaired . | . . . . . . . . . . . . . . . . . . . . . . . . . Machines Dismantled . | . . . . . . . . . . . . . . . . . . . . . . . . . Machines Sabotaged . | . . . . . . . . . . . . . . . . . . . . . . . . . Overloaded Fab Kills . | . . . . . . . . . . . . . . . . . . . . . . . . . Hacking | -11 -10 -10 -8 -8 -6 -6 -6 -6 -5 -5 -5 -5 -5 -5 -4 -4 -4 -4 -3 -3 -3 -2 -2 -1 --------- Run | Yrd Mat Sub Rec Scr Fac Low Low Zio Pro Fac Ext Cet Arc Hub Fac Upp Upp War Pro Res Tes Res Qua Acc Machines Accessed 70 | . 8 . 4 3 5 1 2 . . 4 9 . . 1 6 1 . 4 . 4 5 7 2 4 Terminals 39 | . 6 . 3 . 3 . . . . 2 9 . . 1 3 . . . . 1 4 2 2 3 Fabricators 1 | . . . . . 1 . . . . . . . . . . . . . . . . . . . Repair Stations 2 | . . . . . . . . . . . . . . . . . . . . . 1 1 . . Recycling Units 11 | . 2 . 1 . 1 . . . . . . . . . 3 . . . . 2 . 2 . . Scanalyzers 3 | . . . . . . . . . . 2 . . . . . . . . . . . 1 . . Garrison Access 3 | . . . . . . . . . . . . . . . . . . . . 1 . 1 . 1 Total Hacks 181 | . 17 . 14 25 10 1 6 . . 17 18 . . 3 13 1 . 6 . 8 14 17 3 8 Successful 95 | . 9 . 9 25 3 1 6 . . 5 7 . . . 5 1 . 6 . 4 5 8 1 . Failed 86 | . 8 . 5 . 7 . . . . 12 11 . . 3 8 . . . . 4 9 9 2 8 Catastrophic 17 | . . . 2 . 2 . . . . 1 1 . . . 1 . . . . . 5 1 2 2 Database Lockouts . | . . . . . . . . . . . . . . . . . . . . . . . . . Manual 69 | . 17 . 14 . 4 . . . . 4 6 1 . 3 9 . . . . 4 3 3 . 1 Terminals 101 | . 15 . 13 . 7 . . . . 8 18 . . 3 7 . . . . 2 9 9 3 7 Fabricators 2 | . . . . . 2 . . . . . . . . . . . . . . . . . . . Repair Stations 7 | . . . . . . . . . . . . . . . . . . . . . 5 2 . . Recycling Units 15 | . 2 . 1 . 1 . . . . . . . . . 6 . . . . 2 . 3 . . Scanalyzers 10 | . . . . . . . . . . 9 . . . . . . . . . . . 1 . . Garrison Access 7 | . . . . . . . . . . . . . . . . . . . . 4 . 2 . 1 Terminal Hacks 63 | . 1 . 4 25 2 1 6 . . 2 7 . . . 2 1 . 6 . 1 1 3 1 . Record 30 | . . . . 20 . . 5 . . . . . . . . . . 5 . . . . . . Robot Analysis 10 | . 1 . 4 5 . . . . . . . . . . . . . . . . . . . . Open Door 11 | . . . . . . 1 1 . . 1 5 . . . . 1 . 1 . . 1 . . . Level Access Points 1 | . . . . . . . . . . . . . . . . . . . . . . . 1 . Branch Access Points 3 | . . . . . 1 . . . . . . . . . 1 . . . . 1 . . . . Recycling Unit Index 3 | . . . . . 1 . . . . 1 1 . . . . . . . . . . . . . Alert Level 1 | . . . . . . . . . . . . . . . . . . . . . . 1 . . Unreport Threat 2 | . . . . . . . . . . . . . . . . . . . . . . 2 . . Disarm Traps 1 | . . . . . . . . . . . 1 . . . . . . . . . . . . . Recall Investigation 1 | . . . . . . . . . . . . . . . 1 . . . . . . . . . Fabricator Hacks . | . . . . . . . . . . . . . . . . . . . . . . . . . Repair Station Hacks 6 | . . . . . . . . . . . . . . . . . . . . . 4 2 . . Scan Component 3 | . . . . . . . . . . . . . . . . . . . . . 2 1 . . Repair 3 | . . . . . . . . . . . . . . . . . . . . . 2 1 . . Recycling Unit Hacks 2 | . 2 . . . . . . . . . . . . . . . . . . . . . . . Retrieve Components 2 | . 2 . . . . . . . . . . . . . . . . . . . . . . . Scanalyzer 4 | . . . . . . . . . . 3 . . . . . . . . . . . 1 . . Insert Component 3 | . . . . . . . . . . 2 . . . . . . . . . . . 1 . . Analyze 1 | . . . . . . . . . . 1 . . . . . . . . . . . . . . Garrison Access Hacks 1 | . . . . . . . . . . . . . . . . . . . . 1 . . . . Seal Access 1 | . . . . . . . . . . . . . . . . . . . . 1 . . . . Unauthorized Hacks 19 | . 6 . 5 . 1 . . . . . . . . . 3 . . . . 2 . 2 . . Terminals 10 | . 6 . 4 . . . . . . . . . . . . . . . . . . . . . Botnet 2 | . 1 . 1 . . . . . . . . . . . . . . . . . . . . . Skim 8 | . 5 . 3 . . . . . . . . . . . . . . . . . . . . . Fabricators . | . . . . . . . . . . . . . . . . . . . . . . . . . Repair Stations . | . . . . . . . . . . . . . . . . . . . . . . . . . Recycling Units 9 | . . . 1 . 1 . . . . . . . . . 3 . . . . 2 . 2 . . Tunnel 1 | . . . 1 . . . . . . . . . . . . . . . . . . . . . Scrapoids 8 | . . . . . 1 . . . . . . . . . 3 . . . . 2 . 2 . . Scanalyzers . | . . . . . . . . . . . . . . . . . . . . . . . . . Garrison Access . | . . . . . . . . . . . . . . . . . . . . . . . . . Data Cores Recovered 1 | . . . . . . . . . . . . . . . . . . . . . . 1 . . Used . | . . . . . . . . . . . . . . . . . . . . . . . . . Hacking Detections 41 | . 7 . 3 . 4 . . . . 4 5 . . 1 3 . . . . 2 4 3 1 4 Full Trace Events 4 | . . . 1 . 1 . . . . 1 . . . . . . . . . . . . . 1 Feedback Events . | . . . . . . . . . . . . . . . . . . . . . . . . . Feedback Blocked . | . . . . . . . . . . . . . . . . . . . . . . . . . Robot Schematics Acquired . | . . . . . . . . . . . . . . . . . . . . . . . . . Robots Built . | . . . . . . . . . . . . . . . . . . . . . . . . . Authchips . | . . . . . . . . . . . . . . . . . . . . . . . . . Time . | . . . . . . . . . . . . . . . . . . . . . . . . . Total Robot Build Rating . | . . . . . . . . . . . . . . . . . . . . . . . . . Part Schematics Acquired 3 | . . . . . . . . . . 1 . . . . . . . . . . 2 . . . Parts Built . | . . . . . . . . . . . . . . . . . . . . . . . . . Authchips . | . . . . . . . . . . . . . . . . . . . . . . . . . Time . | . . . . . . . . . . . . . . . . . . . . . . . . . Total Part Build Rating . | . . . . . . . . . . . . . . . . . . . . . . . . . Parts Repaired 3 | . . . . . . . . . . . . . . . . . . . . . 2 1 . . Time 112 | . . . . . . . . . . . . . . . . . . . . . 56 56 . . Parts Recycled . | . . . . . . . . . . . . . . . . . . . . . . . . . Recycled Matter . | . . . . . . . . . . . . . . . . . . . . . . . . . Retrieved Matter . | . . . . . . . . . . . . . . . . . . . . . . . . . Retrieved Components 10 | . 10 . . . . . . . . . . . . . . . . . . . . . . . Parts Scanalyzed 1 | . . . . . . . . . . 1 . . . . . . . . . . . . . . Part Schematics Acquired 1 | . . . . . . . . . . 1 . . . . . . . . . . . . . . Parts Damaged . | . . . . . . . . . . . . . . . . . . . . . . . . . Bothacking | -11 -10 -10 -8 -8 -6 -6 -6 -6 -5 -5 -5 -5 -5 -5 -4 -4 -4 -4 -3 -3 -3 -2 -2 -1 ------------ Run | Yrd Mat Sub Rec Scr Fac Low Low Zio Pro Fac Ext Cet Arc Hub Fac Upp Upp War Pro Res Tes Res Qua Acc Used RIF Installer . | . . . . . . . . . . . . . . . . . . . . . . . . . Robots Hacked 1 | . . . . . . . . . . . . . . . . . . . . . 1 . . . Non-combat . | . . . . . . . . . . . . . . . . . . . . . . . . . Combat . | . . . . . . . . . . . . . . . . . . . . . . . . . Robot Hacks Applied . | . . . . . . . . . . . . . . . . . . . . . . . . . Manual 1 | . . . . . . . . . . . . . . . . . . . . . 1 . . . Relay Couplers Released . | . . . . . . . . . . . . . . . . . . . . . . . . . Fabnet Peak Effective % . | . . . . . . . . . . . . . . . . . . . . . . . . . Robots Rewired 9 | . . . . . . . . . . . 9 . . . . . . . . . . . . . Allies Hacked . | . . . . . . . . . . . . . . . . . . . . . . . . . Hacks Repelled . | . . . . . . . . . . . . . . . . . . . . . . . . . Allies | -11 -10 -10 -8 -8 -6 -6 -6 -6 -5 -5 -5 -5 -5 -5 -4 -4 -4 -4 -3 -3 -3 -2 -2 -1 -------- Run | Yrd Mat Sub Rec Scr Fac Low Low Zio Pro Fac Ext Cet Arc Hub Fac Upp Upp War Pro Res Tes Res Qua Acc Total Allies 65 | . . . . 5 5 . . . . . 15 5 . . 15 . . . . 10 . 10 . . Largest Group 12 | . . . . 5 7 4 . . . . 11 12 6 4 10 10 6 . . 9 . 5 . . Highest-Rated Group 830 | . . . . 238 238 129 . . . . 468 830 566 384 479 470 278 . . 576 . 323 . . Highest-Rated Ally 159 | . . . . 50 50 45 . . . . 159 159 151 96 50 47 47 . . 67 . 67 . . Total Orders 24 | . . . . . . . . . . . 2 2 3 1 10 2 3 . . 1 . . . . STAY 11 | . . . . . . . . . . . 1 2 2 1 1 1 2 . . 1 . . . . ROAM 2 | . . . . . . . . . . . . . . . 2 . . . . . . . . . FOLLOW 4 | . . . . . . . . . . . 1 . 1 . . 1 1 . . . . . . . EXPLORE 4 | . . . . . . . . . . . . . . . 4 . . . . . . . . . RETURN 3 | . . . . . . . . . . . . . . . 3 . . . . . . . . . Ally Attacks 709 | . . . . . 139 18 . . . . 42 69 19 22 66 84 18 . . 60 . 172 . . Total Damage 16767 | . . . . . 2404 305 . . . . 994 2178 745 874 1441 1731 251 . . 1387 . 4457 . . Kills 88 | . . . . . 10 . . . . . 7 7 3 4 11 7 7 . . 11 . 21 . . Allies Corrupted 3 | . . . . . . 1 . . . . . . . 1 1 . . . . . . . . . Allies Melted 1 | . . . . . . . . . . . . . . . . . 1 . . . . . . . Intel | -11 -10 -10 -8 -8 -6 -6 -6 -6 -5 -5 -5 -5 -5 -5 -4 -4 -4 -4 -3 -3 -3 -2 -2 -1 ------- Run | Yrd Mat Sub Rec Scr Fac Low Low Zio Pro Fac Ext Cet Arc Hub Fac Upp Upp War Pro Res Tes Res Qua Acc Active Infowar (turns) 25363 | 92 2299 580 4 . 1602 1351 1220 2790 2462 574 1519 747 366 325 880 916 893 1777 1667 915 931 1036 116 301 Sensors 2293 | . . . . . 1602 138 . . . 397 . . . . . . . . . . . . . 156 IFF 16862 | . . . . . . 1213 1167 2790 2462 175 95 130 . 117 880 916 893 1777 1667 915 931 499 91 144 Terrain 1062 | . . . . . . . . . . . . . . . . . . . . 728 334 . . . Structural 9344 | . . . . . 1023 1351 1167 2790 2462 463 . . . 88 . . . . . . . . . . Seismic 3310 | 92 2299 580 4 . . . . . . . . . . . . . . . . . . . 34 301 T.N.C. 326 | . . . . . . . . . . . . . . . . . . . . . . . 25 301 Jamming 13210 | . . . . . 1010 1351 1220 2790 2462 574 1519 747 366 325 . . . . . . . 846 . . Robot Analysis Total 10 | . 1 . 4 5 . . . . . . . . . . . . . . . . . . . . Derelict Logs Recovered 12 | . . 1 . 5 . . 1 1 2 . . . . . . 2 . . . . . . . . Drone Launches 3 | . . . . . . . . . . . . . . . 3 . . . . . . . . . Drone Recoveries 1 | . . . . . . . . . . . . . . . 1 . . . . . . . . . Exploration | -11 -10 -10 -8 -8 -6 -6 -6 -6 -5 -5 -5 -5 -5 -5 -4 -4 -4 -4 -3 -3 -3 -2 -2 -1 ------------- Run | Yrd Mat Sub Rec Scr Fac Low Low Zio Pro Fac Ext Cet Arc Hub Fac Upp Upp War Pro Res Tes Res Qua Acc Turns Passed 36334 | 226 2299 778 558 9605 1607 1351 1220 2790 2462 574 1519 747 366 333 885 916 893 1777 1667 916 949 1433 162 301 Spaces Moved 15078 | 112 703 282 229 3320 615 521 481 1146 713 311 872 211 181 183 376 438 529 971 660 526 369 646 193 490 Core 789 | 3 . . . 246 . . . . . . . . . . . . . . . . . 131 177 232 Treads 10559 | 109 703 282 229 3074 615 521 481 1146 713 . 2 . . 4 376 438 529 748 12 1 32 515 16 13 Legs . | . . . . . . . . . . . . . . . . . . . . . . . . . Wheels 3485 | . . . . . . . . . . 311 870 211 181 179 . . . 223 648 525 337 . . . Hover . | . . . . . . . . . . . . . . . . . . . . . . . . . Flight 245 | . . . . . . . . . . . . . . . . . . . . . . . . 245 Fastest Speed 34 | 50 160 240 240 50 156 243 243 243 237 120 130 120 140 130 153 153 153 140 130 140 130 50 50 34 Average Speed 201 | 157 265 240 240 271 208 243 243 243 241 130 139 137 140 141 201 167 155 155 136 140 177 143 62 45 Slowest Speed 570 | 160 320 240 240 320 243 243 243 243 243 140 392 140 140 200 240 240 160 240 200 245 570 237 160 152 Overloaded Moves . | . . . . . . . . . . . . . . . . . . . . . . . . . Propulsion Burnouts . | . . . . . . . . . . . . . . . . . . . . . . . . . Robots Hopped 3 | . . . . . . . . . . . . . . . . . . . . . . . . 3 Potential Cave-ins 18 | . . . . . . . . . . 4 8 . . . . . . . . . . 6 . . Cave-ins Triggered . | . . . . . . . . . . . . . . . . . . . . . . . . . Exploration Rate (%) 50 | 8 93 21 36 88 17 72 67 85 75 11 66 66 79 24 17 64 61 87 66 25 55 33 20 18 Regions Visited 24 Branch Regions 17 Pre-discovered Areas 14 | . 2 . 1 8 . . 1 1 . . . . . . . . . 1 . . . . . . Known Exits Taken 19 | . . 1 . . 1 1 1 1 1 1 1 1 1 1 1 1 1 1 1 1 1 . 1 . Unknown Exits Taken 5 | 1 1 . 1 1 . . . . . . . . . . . . . . . . . 1 . . Scrap Searched 26 | . . 1 . 5 . 3 5 4 2 . . . . . . 1 2 . 3 . . . . . Spaces Dug 164 | . 27 2 . . 28 3 2 . 9 14 3 . 2 2 12 5 3 11 4 12 17 6 . 2 Terrain Destroyed 940 | . 30 2 1 . 38 7 6 . 88 58 63 5 3 219 22 8 9 14 10 36 75 244 . 2 Melee 3 | . . . . . . . . . . . . . . . . . . . . . . 1 . 2 Projectile 552 | . . 2 1 . 38 7 6 . 33 26 22 5 3 9 22 8 9 14 10 32 75 230 . . AOE 384 | . 30 . . . . . . . 55 32 41 . . 210 . . . . . 4 . 12 . . Terrain Rammed . | . . . . . . . . . . . . . . . . . . . . . . . . . Walls Destroyed . | . . . . . . . . . . . . . . . . . . . . . . . . . Machines Disabled . | . . . . . . . . . . . . . . . . . . . . . . . . . Actions | -11 -10 -10 -8 -8 -6 -6 -6 -6 -5 -5 -5 -5 -5 -5 -4 -4 -4 -4 -3 -3 -3 -2 -2 -1 --------- Run | Yrd Mat Sub Rec Scr Fac Low Low Zio Pro Fac Ext Cet Arc Hub Fac Upp Upp War Pro Res Tes Res Qua Acc Total 20016 | 134 1021 344 233 3915 842 579 509 1153 1388 428 1094 644 271 227 462 606 586 1219 1335 659 616 992 224 535 Wait 3282 | . 209 9 . 492 72 29 . . 607 45 88 371 63 . 16 143 . 200 627 28 156 109 3 15 Move 15048 | 111 702 282 228 3319 614 520 480 1145 712 310 871 210 180 182 375 437 528 970 659 525 368 645 192 483 Hop 3 | . . . . . . . . . . . . . . . . . . . . . . . . 3 Pick Up 213 | 3 27 9 . 54 17 2 1 4 . 4 . 11 3 7 11 5 4 8 3 16 3 14 5 2 Fast Attach 74 | 7 . 1 . 10 . . . 1 . 2 . 3 1 1 2 1 2 3 1 5 7 12 8 7 Attach 69 | . . . . 3 8 . . . 1 2 1 . 1 5 7 . . 1 3 8 5 15 5 4 Detach 12 | . . . . . . . . . . . . 1 1 . . . . 1 . 2 2 2 3 . Swap 190 | . 8 9 3 3 18 2 5 . 4 11 13 10 3 8 11 2 9 10 4 12 12 33 . . Drop 189 | . 11 11 . 27 18 3 2 3 . 7 3 17 2 6 8 5 10 11 2 16 8 10 3 6 Fire 823 | 12 55 21 1 7 83 23 21 . 64 47 56 21 16 17 32 13 33 15 36 47 55 148 . . Melee 22 | . . . . . . . . . . . . . . . . . . . . . . 2 5 15 Ram 2 | . . . . . . . . . . . . . 1 1 . . . . . . . . . . Kick . | . . . . . . . . . . . . . . . . . . . . . . . . . Crush 19 | 1 9 2 1 . 5 . . . . . . . . . . . . . . . . 1 . . Escape Stasis 15 | . . . . . 2 . . . . . 12 . . . . . . . . . . 1 . . Rewire 55 | . . . . . 5 . . . . . 50 . . . . . . . . . . . . . Trap . | . . . . . . . . . . . . . . . . . . . . . . . . . Miscellaneous . | . . . . . . . . . . . . . . . . . . . . . . . . . Route ------- -11/Scrapyard -10/Materials (discovered 5 exits: [*Mat x3] / Min / [*Sub]) -10/Subcaves (discovered 3 exits: Mat x2 / *Rec) -8/Recycling -8/Scraptown (discovered 2 exits: *Fac x2) -6/Factory (discovered 3 exits: *Fac / *Low x2) -6/Lower Caves -6/Lower Caves (discovered 2 exits: *Fac / *Zio) -6/Zion -5/Proximity Caves -5/Factory (discovered 3 exits: *Upp x2 / *Ext) -5/Extension (discovered 2 exits: *Fac / *Cet) -5/Cetus (discovered 2 exits: *Fac / *Arc) -5/Archives (discovered 2 exits: *Fac / *Hub) -5/Hub_04(d) -4/Factory (discovered 6 exits: *Res x4 / *Upp x2) -4/Upper Caves -4/Upper Caves (discovered 2 exits: *Res / *War) -4/Warlord -3/Proximity Caves -3/Research (discovered 5 exits: *Res x2 / Arm / *Tes x2) -3/Testing -2/Research -2/Quarantine -1/Access To Epsilon Eridani History --------- Turn | Location | Event 4 | -11/Scrapyard | Discovered new exit (range 15) 227 | -11/Scrapyard | Entered Materials 304 | -10/Materials | Build established: Mutant 596 | -10/Materials | Discovered new exit (range 5) 1131 | -10/Materials | Discovered new exit (range 14) 1484 | -10/Materials | Discovered new exit (range 9) 1510 | -10/Materials | Discovered new exit (range 7) 1881 | -10/Materials | Identified exit to Mines 1917 | -10/Materials | Learned location of Subcaves (-10) 1954 | -10/Materials | Learned Storage security intel 1960 | -10/Materials | Learned location of 2 exits from Materials 1965 | -10/Materials | Learned location of 2 exits from Subcaves 1979 | -10/Materials | Learned location of Mines (-10) 2001 | -10/Materials | Loaded intel: 2 recycling unit locations 2526 | -10/Materials | Entered Subcaves 2527 | -10/Subcaves | Approached by a straggling Scientist 2527 | -10/Subcaves | Identified exit to Materials 2528 | -10/Subcaves | Identified exit to Recycling 2789 | -10/Subcaves | Core integrity fell below 50% 3304 | -10/Subcaves | Entered Recycling 3580 | -8/Recycling | Build established: Scavenger-Mutant 3804 | -8/Recycling | Scanned before Scraplab entrance 3838 | -8/Recycling | Entered Scraplab 3857 | -8/Recycling | Discovered new exit (range 3) 3862 | -8/Recycling | Entered Scraptown 4182 | -8/Scraptown | Visited Science Testing Area 4263 | -8/Scraptown | Scanned Subdweller tech in exchange for log data 4268 | -8/Scraptown | Learned location of Quarantine (-2) 4270 | -8/Scraptown | Learned location of Armory (-3) 4273 | -8/Scraptown | Learned Factory terminal intel 4275 | -8/Scraptown | Learned Factory stockpile data 4280 | -8/Scraptown | Learned Research non-interactive machine intel 4395 | -8/Scraptown | Visited UFD Registry 4395 | -8/Scraptown | Registered with UFD as "Wavespreader" 4467 | -8/Scraptown | Visited Analyses Database 4541 | -8/Scraptown | Visited Junk Repository 4637 | -8/Scraptown | Visited Curators Association 4691 | -8/Scraptown | Visited Abandonware Association 4723 | -8/Scraptown | Learned abandonware demo "MELTYB.EXE" 4790 | -8/Scraptown | Visited Research Penetration Think Tank 4880 | -8/Scraptown | Visited Scrapoid Pod Storage 4896 | -8/Scraptown | Found Scrapoid Pod 4935 | -8/Scraptown | Visited LU-1G1's Boring Crew 5108 | -8/Scraptown | Visited Observation Area 5169 | -8/Scraptown | Visited Scrap Suit Storage 5220 | -8/Scraptown | Visited Cartography Club 5377 | -8/Scraptown | Visited Symbiants 5454 | -8/Scraptown | Visited Bundlers 5624 | -8/Scraptown | Visited Spacefarers 6287 | -8/Scraptown | Visited Comm Corps 6405 | -8/Scraptown | Visited Awakened 6603 | -8/Scraptown | Discovered new exit (range 13) 9825 | -8/Scraptown | Scrapoid Pod released 08S05-D (x5) 10535 | -8/Scraptown | Found Surveybot 17 Chip 10568 | -8/Scraptown | Learned location of Lower Caves (-6) 10568 | -8/Scraptown | Learned location of Upper Caves (-5) 10568 | -8/Scraptown | Learned location of Warlord (-4) 10568 | -8/Scraptown | Learned location of Cetus (-5) 10568 | -8/Scraptown | Learned 12 Materials zone layouts 10568 | -8/Scraptown | Learned 12 Factory zone layouts 10568 | -8/Scraptown | Learned 20 Lower Caves zone layouts 10568 | -8/Scraptown | Learned 8 Upper Caves zone layouts 10568 | -8/Scraptown | Learned 12 Upper Caves zone layouts 10568 | -8/Scraptown | Learned location of 1 exit from Upper Caves 10568 | -8/Scraptown | Learned location of 3 exits from Upper Caves 10579 | -8/Scraptown | Found Deep Structural Scanner 10807 | -8/Scraptown | Build established: Mutant 12629 | -8/Scraptown | Found Scrap Suit 13448 | -8/Scraptown | Discovered new exit (range 3) 13467 | -8/Scraptown | Entered Factory 13467 | -6/Factory | Accompanied by 5 allies 13467 | -6/Factory | Evolved 8 slots: Power x1, Propulsion x2, Utility x4, Weapon x1 13470 | -6/Factory | Loaded intel: 26 terminal locations 13761 | -6/Factory | Build established: Tank 13853 | -6/Factory | Discovered new exit (range 8) 13870 | -6/Factory | Identified exit to Factory 14142 | -6/Factory | Identified exit to Lower Caves 14355 | -6/Factory | Build established: Scavenger-Skirmisher 14905 | -6/Factory | Scrapoid reinforcements arrived 14919 | -6/Factory | P-60 Hacker assimilated allied 06F08-D 14921 | -6/Factory | P-60 Hacker assimilated allied 06F07-D 15074 | -6/Factory | Entered Lower Caves 15074 | -6/Lower Caves | Accompanied by 4 allies 15075 | -6/Lower Caves | Identified exit to Lower Caves 15127 | -6/Lower Caves | Lost 3 allies 15164 | -6/Lower Caves | Found Scrap Suit 16425 | -6/Lower Caves | Entered another Lower Caves area 16530 | -6/Lower Caves | Discovered exit to Factory (range 16) 16558 | -6/Lower Caves | Entered an active Warlord outpost 16608 | -6/Lower Caves | Learned Factory emergency access door positions 16608 | -6/Lower Caves | Learned Extension security intel 16850 | -6/Lower Caves | Encountered a Warlord checkpoint 17123 | -6/Lower Caves | Discovered new exit (range 17) 17643 | -6/Lower Caves | Identified exit to Zion 17645 | -6/Lower Caves | Entered Zion 17646 | -6/Zion | Identified exit to Proximity Caves 18199 | -6/Zion | Received a hallucinogenic algorithm 18437 | -6/Zion | Given the Hacking Drone Bay 18437 | -6/Zion | Found Prototype Device 18713 | -6/Zion | Learned Factory emergency access door positions 18723 | -6/Zion | Found CR-A16's Pointy Stick 19606 | -6/Zion | Turned away by Imprinter 20435 | -6/Zion | Entered Proximity Caves 20509 | -5/Proximity Caves | Learned Factory terminal intel 22383 | -5/Proximity Caves | Learned Factory terminal intel 22415 | -5/Proximity Caves | Build established: Infiltrator-Skirmisher 22593 | -5/Proximity Caves | Discovered exit to Factory (range 16) 22782 | -5/Proximity Caves | Received a Behemoth hack from an annoying Tinkerer 22897 | -5/Proximity Caves | Entered Factory 22897 | -5/Factory | Evolved 2 slots: Utility x2 22898 | -5/Factory | Identified exit to Upper Caves 22898 | -5/Factory | Identified exit to Extension 22900 | -5/Factory | Loaded intel: 27 terminal locations 23086 | -5/Factory | Discovered exit to Upper Caves (range 8) 23471 | -5/Factory | Entered Extension 23746 | -5/Extension | Build established: Scavenger-Tank 23813 | -5/Extension | Rescued A7 23980 | -5/Extension | Rescued a captive Derelict 24155 | -5/Extension | Build established: Scavenger-Scrapper 24259 | -5/Extension | Rescued a captive Derelict 24260 | -5/Extension | Rescued a captive Derelict 24350 | -5/Extension | Rescued a captive Derelict 24351 | -5/Extension | Rescued a captive Derelict 24496 | -5/Extension | Disrupted transfer network 24567 | -5/Extension | Rescued a captive Derelict 24958 | -5/Extension | Discovered new exit (range 10) 24960 | -5/Extension | Discovered new exit (range 6) 24967 | -5/Extension | Identified exit to Cetus 24990 | -5/Extension | Entered Cetus 24990 | -5/Cetus | Accompanied by 11 allies (A7) 24995 | -5/Cetus | Acquired a Cetus Manufacturing Module code from A7 25048 | -5/Cetus | Build established: Commander-Scrapper 25051 | -5/Cetus | Spotted Cetus Guard 25051 | -5/Cetus | Spotted Cetus Guard 25059 | -5/Cetus | Spotted Cetus Guard 25059 | -5/Cetus | Allies destroyed Cetus Guard 25060 | -5/Cetus | Spotted Cetus Guard 25064 | -5/Cetus | Destroyed Cetus Guard 25076 | -5/Cetus | Allies destroyed Cetus Guard 25080 | -5/Cetus | Allies destroyed Cetus Guard 25106 | -5/Cetus | Lost 4 allies 25209 | -5/Cetus | Started Cetus Manufacturing Module 25223 | -5/Cetus | Escorted A7 to Cetus Mainframe 25234 | -5/Cetus | Manufactured an Enhanced Grunt 25259 | -5/Cetus | Manufactured an Enhanced Grunt 25284 | -5/Cetus | Manufactured an Enhanced Grunt 25309 | -5/Cetus | Manufactured an Enhanced Grunt 25334 | -5/Cetus | Manufactured an Enhanced Grunt 25376 | -5/Cetus | Discovered new exit (range 15) 25409 | -5/Cetus | Spotted Cetus Guard 25409 | -5/Cetus | Spotted Cetus Guard 25410 | -5/Cetus | Allies destroyed Cetus Guard 25411 | -5/Cetus | Spotted Cetus Guard 25411 | -5/Cetus | Spotted Cetus Guard 25417 | -5/Cetus | Destroyed Cetus Guard 25430 | -5/Cetus | Destroyed Cetus Guard 25432 | -5/Cetus | Allies destroyed Cetus Guard 25449 | -5/Cetus | Found Prototype Device 25450 | -5/Cetus | Identified Exp. Thermal Shield 25458 | -5/Cetus | Lost 4 allies 25458 | -5/Cetus | Discovered new exit (range 15) 25465 | -5/Cetus | Met Revision 17 25525 | -5/Cetus | Identified exit to Archives 25737 | -5/Cetus | Entered Archives 25737 | -5/Archives | Accompanied by 6 allies (A7) 25742 | -5/Archives | Received a hacking code to weaken MAIN.C 25754 | -5/Archives | Build established: Scavenger-Tank 26017 | -5/Archives | Discovered new exit (range 15) 26067 | -5/Archives | Discovered new exit (range 15) 26085 | -5/Archives | Identified exit to Hub_04(d) 26103 | -5/Archives | Entered Hub_04(d) 26103 | -5/Hub_04(d) | Accompanied by 4 allies 26396 | -5/Hub_04(d) | Discovered new exit (range 11) 26396 | -5/Hub_04(d) | Network Hub disabled 26403 | -5/Hub_04(d) | Spotted Lightning 26406 | -5/Hub_04(d) | Spotted Lightning 26417 | -5/Hub_04(d) | Destroyed 13 combat bots 26420 | -5/Hub_04(d) | Spotted Lightning 26429 | -5/Hub_04(d) | System corruption reached 10% 26433 | -5/Hub_04(d) | Identified exit to Factory 26436 | -5/Hub_04(d) | Entered Factory 26436 | -4/Factory | Evolved 2 slots: Propulsion x1, Utility x1 26437 | -4/Factory | Identified exit to Research 26438 | -4/Factory | Lost 3 allies 26439 | -4/Factory | Loaded intel: 26 terminal locations 26467 | -4/Factory | Lost 8 parts (1p3n3u1w) 26918 | -4/Factory | Identified exit to Upper Caves 27103 | -4/Factory | Spotted B-86 Titan 27113 | -4/Factory | Scrapoid reinforcements arrived 27113 | -4/Factory | Destroyed B-86 Titan 27153 | -4/Factory | Discovered exit to Research (range 12) 27186 | -4/Factory | First assault squad dispatched 27224 | -4/Factory | Scrapoid reinforcements arrived 27225 | -4/Factory | Found Scrap Suit 27244 | -4/Factory | Lost 3 allies 27267 | -4/Factory | Build established: Scavenger-Gunner 27281 | -4/Factory | Scrapoids reinforcements arrived? 27321 | -4/Factory | Entered Upper Caves 27321 | -4/Upper Caves | Accompanied by 10 allies 27322 | -4/Upper Caves | Identified exit to Upper Caves 27333 | -4/Upper Caves | Learned location of 1 exit from Research 27544 | -4/Upper Caves | Learned 8 Research zone layouts 27568 | -4/Upper Caves | Build established: Commander-Gunner 28092 | -4/Upper Caves | Spotted B-86 Titan 28103 | -4/Upper Caves | Allies destroyed B-86 Titan 28237 | -4/Upper Caves | Entered another Upper Caves area 28237 | -4/Upper Caves | Accompanied by 6 allies 28238 | -4/Upper Caves | Identified exit to Warlord 28390 | -4/Upper Caves | Build established: Scavenger-Gunner 29015 | -4/Upper Caves | Found Scrap Suit 29115 | -4/Upper Caves | Murdered 3 allies 29130 | -4/Upper Caves | Entered Warlord 29131 | -4/Warlord | Identified exit to Proximity Caves 29183 | -4/Warlord | System corruption cleaned by Quarantine Array 29314 | -4/Warlord | Build established: Scavenger-Tank 29617 | -4/Warlord | Received a Watcher feed algorithm from an ecstatic Tinkerer 29854 | -4/Warlord | Learned 4 Armory zone layouts 29854 | -4/Warlord | Learned 4 Testing zone layouts 29854 | -4/Warlord | Learned Factory repair station intel 29854 | -4/Warlord | Learned Armory scanalyzer intel 29981 | -4/Warlord | Visited the Vortex Lab 29993 | -4/Warlord | Found Prototype Energy Cannon 29993 | -4/Warlord | Identified Vortex Driver 29994 | -4/Warlord | Warlord's base attacked by MAIN.C 29997 | -4/Warlord | Found Prototype Energy Gun 29997 | -4/Warlord | Identified Vortex Shotgun 30007 | -4/Warlord | Found Vortex Driver 30068 | -4/Warlord | Found Prototype Reactor 30076 | -4/Warlord | Found Prototype Device 30076 | -4/Warlord | Identified System Purifier 30084 | -4/Warlord | Found Prototype Hackware 30084 | -4/Warlord | Identified System Mapper 30091 | -4/Warlord | Found Prototype Processor 30091 | -4/Warlord | Identified Exp. Target Analyzer 30099 | -4/Warlord | Found Prototype Processor 30099 | -4/Warlord | Identified Exp. Targeting Computer 30344 | -4/Warlord | Warlord forces counterattacked 30357 | -4/Warlord | Build established: Scavenger-Gunner 30605 | -4/Warlord | Spotted B-90 Cyclops 30669 | -4/Warlord | Warlord base infiltrated, sounded retreat 30676 | -4/Warlord | Rebuked by Warlord 30770 | -4/Warlord | Spotted Executioner 30817 | -4/Warlord | Spotted Striker 30844 | -4/Warlord | Spotted Executioner 30868 | -4/Warlord | Lost 6 allies 30894 | -4/Warlord | Spotted Striker 30899 | -4/Warlord | Spotted Executioner 30907 | -4/Warlord | Entered Proximity Caves 30936 | -3/Proximity Caves | Lost 6 allies 31532 | -3/Proximity Caves | Lost 3 allies 31963 | -3/Proximity Caves | Attracted the attention of an 0b10 outpost 32001 | -3/Proximity Caves | Destroyed 9 combat bots 32481 | -3/Proximity Caves | Identified Vortex Chain Reactor 32561 | -3/Proximity Caves | Discovered exit to Research (range 10) 32574 | -3/Proximity Caves | Entered Research 32574 | -3/Research | Evolved 2 slots: Weapon x2 32575 | -3/Research | Identified exit to Research 32577 | -3/Research | Loaded intel: 51 non-interactive machine locations 32672 | -3/Research | Scrapoid reinforcements arrived 32685 | -3/Research | Garrison activated, responded to threat 32774 | -3/Research | Revision forces began assault on 0b10 32835 | -3/Research | Met up with Revision 17++ 32841 | -3/Research | Identified exit to Armory 32841 | -3/Research | Identified exit to Testing 32867 | -3/Research | Build established: Scavenger-Scrapper 32891 | -3/Research | Scrapoid reinforcements arrived 32926 | -3/Research | Discovered exit to Research (range 11) 33274 | -3/Research | Research terminal network offline 33461 | -3/Research | Found Scrap Suit 33490 | -3/Research | Entered Testing 33494 | -3/Testing | Murdered 6 allies 33520 | -3/Testing | Found Prototype Protection 33594 | -3/Testing | Repaired Ovr. Coil Gun 33622 | -3/Testing | Repaired Ovr. Coil Gun 34052 | -3/Testing | Found Prototype Processor 34052 | -3/Testing | Identified Exp. Signal Interpreter 34170 | -3/Testing | Garrison activated, responded to threat 34390 | -3/Testing | Found Prototype Energy Cannon 34390 | -3/Testing | Identified Hpw. Disruptor Cannon 34439 | -3/Testing | Entered Research 34439 | -2/Research | Evolved 2 slots: Propulsion x1, Weapon x1 34446 | -2/Research | Garrison activated, responded to threat 34861 | -2/Research | Repaired Ovr. Coil Gun 34914 | -2/Research | Destroyed 8 combat bots 34985 | -2/Research | Scrapoid reinforcements arrived 35025 | -2/Research | Garrison activated, responded to threat 35051 | -2/Research | Lost 3 parts (2p1w) 35088 | -2/Research | Lost 5 allies 35099 | -2/Research | Destroyed 7 combat bots 35429 | -2/Research | Scrapoid reinforcements arrived 35439 | -2/Research | First assault squad dispatched 35460 | -2/Research | Garrison activated, responded to threat 35466 | -2/Research | Build established: Scavenger-Executioner 35473 | -2/Research | High security lockdown imminent 35501 | -2/Research | Identified Hvy. Regenerative Plating 35553 | -2/Research | High security lockdown engaged 35631 | -2/Research | Lost 4 allies 35650 | -2/Research | Destroyed 10 combat bots 35748 | -2/Research | Scanned by Researcher 35750 | -2/Research | Spotted Investigator 35798 | -2/Research | Core integrity fell below 50% 35798 | -2/Research | Released all parts (6) 35808 | -2/Research | Destroyed 21 combat bots 35829 | -2/Research | Lost 22 parts (3p3n7u9w) 35841 | -2/Research | Spotted Executioner 35868 | -2/Research | Discovered new exit (range 10) 35872 | -2/Research | Entered Quarantine 35903 | -2/Quarantine | Identified exit to Access 35955 | -2/Quarantine | Found Alien Artifact 36034 | -2/Quarantine | Entered Access 36034 | -1/Access | Evolved 2 slots: Utility x2 36324 | -1/Access | Identified Terrabomb 36324 | -1/Access | Used Terrabomb 36330 | -1/Access | Discovered new exit (range 4) 36334 | -1/Access | Identified exit to Surface 36335 | *** | Escaped! Last Messages --------------- 36220_ Com. Wheel fried. 36222_ Acquired 102 matter. 36223_ K-01 Serf collects debris. 36253_ U-05 Engineer builds a Wall. 36254_ ALERT: Potential suspicious activity detected, Q-Series report to Access Zone 8O. 36281_ Acquired Field Propulsion Array. 36283_ Acquired System Shield. 36308_ Connecting with Terminal... 36311_ ALERT: Suspicious activity at Terminal A001. Dispatching Investigation squad. 36324_ Identified Terrabomb. 36324_ Terrabomb activated. 36325_ Penetrated by Slug. 36329_ Impulse Thruster destroyed. 36330_ Main Access Shell breached. 36330_ EXIT=FOUND 36332_ U-05 Engineer builds a Wall. 36334_ EXIT=IDENTIFIED: SURFACE [Achievement: True Cogmind] Map ----- +----------------------------------------------------+ | ??######## ##########+##+###+######### !=! # | | != # | | =! !# | | ???####### ##########+######################### | | ########### #???????? ??????????????????????? | | # #?????? ????????????????????? | | # #?????# #???????????????????? | | " + #?????# = #???????????????????? | | " " # #????## #???????????????????? | | " """ # ####### #???????????????????? | | """ # # " ! #???????????????????? | | " " # # " ##??????????????????? | | " # " """";;;;;""###????????????????? | | " # " ##???????????????? | | # " ##??????????????? | | # " ##?????????????? | | ########### #? ##????????????? | | ??????????# #? ? #????????????? | | ???????? "" # ? """ #????????????? | | ???????? ""k #"""""""""";;;""""""""??????????????? | | ??????? "" """T"""" "??????????????????? | | ??????? "" """ """" "????BB????????????? | | ?????? ["" " "" """ "????BB????????????? | | ?????? "" Y " " "????????????????????? | | ??????""""" " " "" "????????????????????? | | ????? " " " @" "????????????????????? | | ????? " " " "????????????????????? | | ????" " " """""" "????BB????????????? | | ????" " " "????BB????????????? | | ????" " " """????????????????? | | ????" " """""""""""""""""""""""""???????????? | | ????" " " """ ???????????? | | ????" " " """????????????? | | ????? " " " ????????????? | | ?????"""""" " " ?????????????? | | ?????? + " " ?????????????? | | ?????? " """""""""""""""""""""" ?????????????? | | ??????? " "??????????????? | | ??????? " +??????????????? | | ??????? " """"""""""/"+"""""" ???????????????? | | ???????? " " " " " ???????????????? | | ????????""" " " " " ????????????????? | | ?????????"" " " " " "?????????????????? | | ??????????? " " """ ]?" ???????????????????? | | ?????????????" " G ?????????????????????? | | ???????????????? " ???????????????????????????? | | ?????????????????? " ???????????????????????????? | | ?????????????????????????????????????????????????? | | ?????????????????????????????????????????????????? | | ?????????????????????????????????????????????????? | +----------------------------------------------------+ Best States ------------- Heat Dissipation 139 Coolant Potential 80 Energy Generation 55 Energy Capacity 700 Matter Stores 300 Matter Capacity 300 Sight Range 16 Robot Scan Range 16 Terrain Scan Range 20 Terrain Scan Density 1210 Jamming Range 16 Additional Mass Support 12 Base Temperature (-) 200 Armor Coverage 1200 Weapon Cycling 20 Evasion (%) 71 Targeting Accuracy 12 Target Analysis 10 Core Analysis 6 Recoil Reduction 6 Matter Filtering 50 Particle Charging 25 Salvage Targeting 4 Offensive Hacking 20 Defensive Hacking 10 Authchip Count 1 Item Schematics ----------------- Ovr. Coil Gun | -5/Factory | Scanalyzed Enh. Flexi-carbon Leg | -3/Testing | Archive Nanosword | -3/Testing | Archive Robot Schematics ------------------ None Fabricated ------------ Nothing Repaired ---------- Ovr. Coil Gun | 6% | -3/Testing Ovr. Coil Gun | 10% | -3/Testing Ovr. Coil Gun | 16% | -2/Research Alien Tech Used ----------------- Terrabomb Achievements -------------- True Cogmind Challenges ------------ None Game ------ Seed SubdwellerProjectileInjector Manual? 0 Play Time 03:51:19 Cumulative 217.6 hours Start 2025.10.18 @ 12:49:42 End 2025.10.19 @ 11:16:55 Sessions 11 Manual Loads 0 Difficulty Rogue Special Mode None Game No. 123 Rogue 123 Adventurer 0 Explorer 0 Win Type 0 Total 25 Types 11/1/9/1/0/1/1/1/0/0 Lore% 78 Gallery% 68 Achievement% 73 Wizard Run 0 Options --------- Layout 1 ASCII 0 Keyboard 0 Movement Arrows Keybinds 0 Fullscreen 2 Font 24/Tamsyn Map View 50x35 Zoom Use 0% Tactical HUD 1 Map Filters NONE Filters NONE Steam 1 RUN: b835b4fa-6de8-4ed9-aa20-97601f021739